Cogmind - Beta 14 --- EXPLORER MODE // 2024.09.05 @ 09:47:58 Player: Zachary Result: Self-destructed Performance ------------- Evolutions (1) 500 Regions Visited (3) 600 Robots Destroyed (13) 65 Value Destroyed (266) 266 Prototype IDs (0) 0 Alien Tech Used (0) 0 Bonus (0) 0 TOTAL SCORE: 1431 Bonus ------- None Cogmind --------- Core Integrity 383/400 Matter 247/300 Energy 250/250 System Corruption 0% Temperature Warm (160) Movement Treading (160) Location -9/Materials Parts ------- > --- POWER (1) -------- Ion Engine > --- PROPULSION (2) --- Light Treads Light Treads > --- UTILITY (3) ------ Structural Scanner Sensor Array Seismic Detector > --- WEAPON (4) ------- Medium Laser Assault Rifle Light Assault Rifle Rocket Launcher > --- INVENTORY (5) ---- Light Ion Engine Visual Processing Unit Improved Targeting Computer Power Shielding EMP Blaster Peak State ------------ > --- POWER ------------ Ion Engine > --- PROPULSION ------- Light Treads Light Treads > --- UTILITY ---------- Structural Scanner Sensor Array Seismic Detector > --- WEAPON ----------- Medium Laser Assault Rifle Light Assault Rifle Rocket Launcher > --- INVENTORY -------- Light Ion Engine Visual Processing Unit Power Shielding [Rating: 11] Favorites ----------- Power Ion Engine Engine Ion Engine Propulsion Light Treads Treads Light Treads Utility Sensor Array Device Sensor Array Weapon Medium Laser Energy Gun Medium Laser Ballistic Gun Assault Rifle Launcher Rocket Launcher Build | -11 -10 -10 -9 ------- Run | Yrd Mat Min Mat Slots Evolved 3 | . 1 . 2 Power . | . . . . Propulsion . | . . . . Utility 1 | . . . 1 Weapon 2 | . 1 . 1 Parts Attached 11 | 7 1 1 2 Power 1 | 1 . . . Engine 1 | 1 . . . Core . | . . . . Reactor . | . . . . Propulsion 2 | 2 . . . Treads 2 | 2 . . . Leg . | . . . . Wheel . | . . . . Hover . | . . . . Flight . | . . . . Utility 3 | 2 . . 1 Device 3 | 2 . . 1 Storage . | . . . . Processor . | . . . . Hackware . | . . . . Protection . | . . . . Artifact . | . . . . Weapon 5 | 2 1 1 1 Energy Gun 1 | 1 . . . Energy Cannon . | . . . . Ballistic Gun 3 | 1 1 . 1 Ballistic Cannon . | . . . . Launcher 1 | . . 1 . Special Weapon . | . . . . Impact Weapon . | . . . . Slashing Weapon . | . . . . Piercing Weapon . | . . . . Special Melee Weapon . | . . . . Unidentified Prototypes . | . . . . Parts Lost . | . . . . Power . | . . . . Propulsion . | . . . . Utility . | . . . . Weapon . | . . . . Highest Loss Streak . | . . . . To Critical Strikes . | . . . . Average Slot Usage (%) 99 | . 95 100 100 Engine 11 | . 12 12 10 Treads 23 | . 25 25 20 Device 26 | . 25 25 30 Energy Gun 11 | . 12 12 10 Ballistic Gun 20 | . 20 21 20 Launcher 4 | . . 3 10 Peak Build Rating 11 | 7 8 9 11 Average Rating 8 | 4 7 8 10 On Entrance 6 | . 7 8 9 Naked Turns . | . . . . Heaviest Build 17 | 11 12 15 17 Greatest Support 40 | 40 40 40 40 Greatest Overweight (x) . | . . . . Average Overweight (x) . | . . . . Largest Inventory Capacity 5 | 5 5 5 5 Average Capacity 5 | 5 5 5 5 Most Carried 5 | 3 1 5 5 Average Carried 2 | . . 2 3 Final Capacity 5 | 5 5 5 5 Final Carried 5 | . 1 5 5 Class Distribution -------------------- 87% | Hacker-Skirmisher 12% | Hacker-Mutant Dominant Class ---------------- Hacker-Skirmisher | -10/Materials Hacker-Skirmisher | -10/Mines Hacker-Skirmisher | -9/Materials Resources | -11 -10 -10 -9 ----------- Run | Yrd Mat Min Mat Matter Collected 374 | . 253 46 75 Remotely . | . . . . Salvage Created 374 | . 27 53 294 Parts 36 | . 3 7 26 Haulers Intercepted 1 | . . . 1 Recyclers Shooed . | . . . . Parts Field Recycled . | . . . . Retrieved Matter . | . . . . Parts Self-Destructed . | . . . . Prevented . | . . . . Kills | -11 -10 -10 -9 ------- Run | Yrd Mat Min Mat Combat Hostiles Destroyed 6 | . . 2 4 Guns 4 | . . 2 2 AOE 2 | . . . 2 Classes Destroyed 8 | . 1 2 5 Builder 1 | . . . 1 Tunneler 1 | . . 1 . Hauler 1 | . . . 1 Recycler 1 | . . . 1 Watcher 3 | . 1 . 2 Swarmer 2 | . . 2 . Grunt 2 | . . . 2 Sentry 2 | . . . 2 Best Kill Streak 9 | . 1 3 9 Combat Bots Only 3 | . . 2 3 Max Kills in Single Turn 2 | . 1 1 2 Gunslinging . | . . . . Exploded 2 | . . . 2 Melee . | . . . . Uniques/NPCs Destroyed . | . . . . Combat | -11 -10 -10 -9 -------- Run | Yrd Mat Min Mat Hostile Shots Fired 17 | . . 4 13 Missed 8 | . . 2 6 Damage Taken 104 | . . 10 94 Core 17 | . . . 17 Absorbed by Shields . | . . . . Ignored by Resistances 64 | . . 6 58 Core Remaining (%) 100 | 100 . 100 . Volleys Fired 13 | . 2 3 8 Largest 4 | . 3 3 4 Hottest 123 | . 90 90 123 Shots Fired 42 | . 5 9 28 Gun 36 | . 5 9 22 Cannon . | . . . . Launcher 6 | . . . 6 Special . | . . . . Kinetic 25 | . 3 6 16 Thermal 11 | . 2 3 6 Explosive 6 | . . . 6 Electromagnetic . | . . . . Robot Hit Streak 12 | . 2 5 12 Robot Miss Streak 1 | . 1 1 1 Penetration Max . | . . . . Secondary Targets 1 | . . 1 . Max Gunslinging Chain 1 | . . 1 . Shots Hit Robots 27 | . 2 7 18 Core Hits 17 | . 1 3 13 Critical Kills . | . . . . Critical Parts Destroyed . | . . . . Critical Strikes . | . . . . Melee Attacks . | . . . . Impact . | . . . . Slashing . | . . . . Piercing . | . . . . Sneak Attacks . | . . . . Combat Hostiles . | . . . . Follow-up Attacks . | . . . . Damage Inflicted 634 | . 28 73 533 Guns 262 | . 28 73 161 Cannons . | . . . . Explosions 372 | . . . 372 Melee . | . . . . Ramming . | . . . . Kinetic 174 | . 15 47 112 Thermal 175 | . 13 26 136 Explosive 285 | . . . 285 Electromagnetic . | . . . . Impact . | . . . . Slashing . | . . . . Piercing . | . . . . Highest Corruption . | . . . . Average Corruption . | . . . . Corruption Purged . | . . . . Corruption Blocked . | . . . . Overload Shots . | . . . . Overflow Damage . | . . . . Projectiles . | . . . . Explosions . | . . . . Melee . | . . . . Knockbacks . | . . . . Impact . | . . . . Kinetic . | . . . . Secondary . | . . . . Self-Inflicted Damage 34 | . . . 34 Shots 2 | . . . 2 Rammed . | . . . . Targets Rammed . | . . . . Kicked . | . . . . Crushed . | . . . . Highest Temperature 183 | . 30 90 183 Average Temperature 50 | . 12 47 62 Received Heat Transfer 30 | . . . 30 Siege Activations . | . . . . Robots Corrupted . | . . . . Combat Hostiles . | . . . . Parts Fried . | . . . . Impact Corruptions . | . . . . Robots Melted . | . . . . Combat Hostiles . | . . . . Parts Melted . | . . . . Heat Transferred 309 | . 37 74 198 Parts Sabotaged . | . . . . Parts Stolen . | . . . . Parts Stripped . | . . . . Power Chain Reactions . | . . . . Alert | -11 -10 -10 -9 ------- Run | Yrd Mat Min Mat Peak Influence 241 | . 7 56 241 Initial 1 | . . 1 . Average 21 | . 1 25 34 Maximum Alert Level 1 | . . . 1 Low Security (%) 99 | 100 100 100 95 Level 1 . | . . . 4 Level 2 . | . . . . Level 3 . | . . . . Level 4 . | . . . . Level 5 . | . . . . High Security . | . . . . Max Security . | . . . . Squads Dispatched . | . . . . Investigation . | . . . . Extermination . | . . . . Reinforcement . | . . . . Assault . | . . . . Garrison . | . . . . Intercept . | . . . . Searches Triggered . | . . . . Construction Impeded . | . . . . Haulers Reinforced . | . . . . Active Scanning Responses . | . . . . Cargo Convoy Interrupts . | . . . . Stealth | -11 -10 -10 -9 --------- Run | Yrd Mat Min Mat Distress Signals 2 | . 1 . 1 Communications Jammed . | . . . . Distress Signals . | . . . . Times Spotted 11 | . 1 2 8 Peak Tracking Total 6 | . 1 2 6 Tactical Retreats . | . . . . Traps | -11 -10 -10 -9 ------- Run | Yrd Mat Min Mat Traps Triggered . | . . . . Indirectly . | . . . . Trap Hack Attempts . | . . . . Triggered . | . . . . Disarmed . | . . . . Reprogrammed . | . . . . Reused . | . . . . Traps Extracted . | . . . . Installed . | . . . . Triggered . | . . . . Machines | -11 -10 -10 -9 ---------- Run | Yrd Mat Min Mat Machines Disabled 2 | . . . 2 Max in Single Turn 2 | . . . 2 Machines Repaired . | . . . . Machines Dismantled . | . . . . Machines Sabotaged . | . . . . Overloaded Fab Kills . | . . . . Hacking | -11 -10 -10 -9 --------- Run | Yrd Mat Min Mat Machines Accessed . | . . . . Terminals . | . . . . Fabricators . | . . . . Repair Stations . | . . . . Recycling Units . | . . . . Scanalyzers . | . . . . Garrison Access . | . . . . Total Hacks . | . . . . Successful . | . . . . Failed . | . . . . Catastrophic . | . . . . Database Lockouts . | . . . . Manual . | . . . . Terminals . | . . . . Fabricators . | . . . . Repair Stations . | . . . . Recycling Units . | . . . . Scanalyzers . | . . . . Garrison Access . | . . . . Terminal Hacks . | . . . . Fabricator Hacks . | . . . . Repair Station Hacks . | . . . . Recycling Unit Hacks . | . . . . Scanalyzer . | . . . . Garrison Access Hacks . | . . . . Unauthorized Hacks . | . . . . Terminals . | . . . . Fabricators . | . . . . Repair Stations . | . . . . Recycling Units . | . . . . Scanalyzers . | . . . . Garrison Access . | . . . . Data Cores Recovered . | . . . . Used . | . . . . Hacking Detections . | . . . . Full Trace Events . | . . . . Feedback Events . | . . . . Feedback Blocked . | . . . . Robot Schematics Acquired . | . . . . Robots Built . | . . . . Authchips . | . . . . Time . | . . . . Total Robot Build Rating . | . . . . Part Schematics Acquired . | . . . . Parts Built . | . . . . Authchips . | . . . . Time . | . . . . Total Part Build Rating . | . . . . Parts Repaired . | . . . . Time . | . . . . Parts Recycled . | . . . . Recycled Matter . | . . . . Retrieved Matter . | . . . . Retrieved Components . | . . . . Parts Scanalyzed . | . . . . Part Schematics Acquired . | . . . . Parts Damaged . | . . . . Bothacking | -11 -10 -10 -9 ------------ Run | Yrd Mat Min Mat Used RIF Installer . | . . . . Robots Hacked . | . . . . Non-combat . | . . . . Combat . | . . . . Robot Hacks Applied . | . . . . Relay Couplers Released . | . . . . Fabnet Peak Effective % . | . . . . Robots Rewired . | . . . . Allies Hacked . | . . . . Hacks Repelled . | . . . . Allies | -11 -10 -10 -9 -------- Run | Yrd Mat Min Mat Total Allies . | . . . . Largest Group . | . . . . Highest-Rated Group . | . . . . Highest-Rated Ally . | . . . . Total Orders . | . . . . Ally Attacks . | . . . . Total Damage . | . . . . Kills . | . . . . Allies Corrupted . | . . . . Allies Melted . | . . . . Intel | -11 -10 -10 -9 ------- Run | Yrd Mat Min Mat Robot Analysis Total . | . . . . Derelict Logs Recovered . | . . . . Drone Launches . | . . . . Drone Recoveries . | . . . . Exploration | -11 -10 -10 -9 ------------- Run | Yrd Mat Min Mat Turns Passed 759 | 54 142 400 163 Spaces Moved 438 | 30 84 241 83 Core 6 | 6 . . . Treads 432 | 24 84 241 83 Legs . | . . . . Wheels . | . . . . Hover . | . . . . Flight . | . . . . Fastest Speed 50 | 50 160 160 160 Average Speed 158 | 138 160 160 160 Slowest Speed 160 | 160 160 160 160 Overloaded Moves . | . . . . Propulsion Burnouts . | . . . . Robots Hopped . | . . . . Cave-ins Triggered . | . . . . Exploration Rate (%) 24 | 3 26 52 17 Regions Visited 3 Branch Regions 1 Pre-discovered Areas . | . . . . Known Exits Taken 3 | 1 1 1 . Unknown Exits Taken . | . . . . Scrap Searched . | . . . . Spaces Dug . | . . . . Terrain Destroyed 74 | . . . 74 Melee . | . . . . Projectile . | . . . . AOE 74 | . . . 74 Terrain Rammed . | . . . . Walls Destroyed . | . . . . Machines Disabled . | . . . . Actions | -11 -10 -10 -9 --------- Run | Yrd Mat Min Mat Total 476 | 43 88 250 95 Wait . | . . . . Move 435 | 29 83 240 83 Hop . | . . . . Pick Up 16 | 7 2 5 2 Fast Attach . | . . . . Attach 11 | 7 1 1 2 Detach . | . . . . Swap . | . . . . Drop 1 | . . 1 . Fire 13 | . 2 3 8 Melee . | . . . . Ram . | . . . . Kick . | . . . . Crush . | . . . . Escape Stasis . | . . . . Rewire . | . . . . Trap . | . . . . Miscellaneous . | . . . . Route ------- -11/Scrapyard -10/Materials -10/Mines -9/Materials (discovered 1 exit: *Min) History --------- Turn | Location | Event 10 | -11/Scrapyard | Identified exit to Materials 10 | -11/Scrapyard | Discovered exit to Materials (range 14) 55 | -11/Scrapyard | Entered Materials 55 | -10/Materials | Evolved 1 slot: Weapon x1 137 | -10/Materials | Identified exit to Mines 137 | -10/Materials | Discovered exit to Mines (range 8) 142 | -10/Materials | Met 8R-AWN 197 | -10/Materials | Entered Mines 199 | -10/Mines | Followed 8R-AWN into the Mines 202 | -10/Mines | Met a Derelict bent on vengeance 412 | -10/Mines | Build established: Hacker-Skirmisher 469 | -10/Mines | Received a Rocket Launcher from a helpful Derelict 588 | -10/Mines | Identified exit to Materials 588 | -10/Mines | Discovered exit to Materials (range 7) 597 | -10/Mines | Entered Materials 597 | -9/Materials | Evolved 2 slots: Utility x1, Weapon x1 735 | -9/Materials | Identified exit to Mines 735 | -9/Materials | Discovered exit to Mines (range 13) 760 | -9/Materials | Self-destructed Last Messages --------------- 00735_ Acquired 11 matter. 00737_ The unstable cave ceiling collapses. 00739_ Acquired 34 matter. 00743_ U-05 Engineer lays Concrete. 00745_ U-05 Engineer builds a Wall. 00746_ R-06 Scavenger collects Wheel. 00749_ R-06 Scavenger destroyed. 00750_ A-02 Transporter destroyed. 00750_ U-05 Engineer builds a Door. 00752_ U-05 Engineer lays Concrete. 00753_ G-34 Mercenary destroyed. 00754_ U-05 Engineer builds a Wall. 00754_ U-05 Engineer lays Concrete. 00756_ The unstable cave ceiling collapses. 00756_ U-05 Engineer lays Concrete. 00756_ Y-45 Defender destroyed. 00757_ U-05 Engineer lays Concrete. 00759_ The unstable cave ceiling collapses. 00759_ U-05 Engineer lays Concrete. 00760_ U-05 Engineer builds a Wall. Map ----- +----------------------------------------------------+ | ?????????????????????????????????????????????????? | | ?????????????????????????????????????????????????? | | ?????????????????????????????????????????????????? | | ?????????????????????????????????????????????????? | | ?????????????????????????????????????????????????? | | ?????????????????????????????????????????????????? | | ?????????????????????????????????????????????????? | | ?????????????????????????????????????????????????? | | ?????????????????????????????????????## ##### | | ?????????????????????????????????????### ######### | | ????????????????????????????????????? ## # | | ?????????????????????????????????????## # # | | ?????????????????????????????????????## # # | | ???????????????????"?????????######??## # # | | ??????????????????""?????? ######??## ! # | | ?????????????????""" ?######### ##??# # + | | ??????????????## ? ?###### # ##??## !## # | | ?????????????? + ?"" ## ##??## ####+## | | ????????????? ## """ ## ###??## # | | ???????????? ## """ ;; = ##??## / | | ???????????? ;; %*##??## # | | ??????????? =] # #;; !=####### ## | | ??????????? = =% ; *! u####### # | | ?????????? !]]*! * ; =%!u/ ? + | | ?????????? %=[% ; * ! ####### ##### | | ?????????? ! ; @ t= ###### ##### | | ??????????????? #### ;;;;;;;;#####?####+#####??? | | ??????????????? #" ; ####??## [ ##??? | | ??????????????? #"" b;########????## ##??? | | ??????????????? #!! #########????## !!! ##??? | | ??????????????? #"" > ##???????????## ! ##??? | | ??????????????? #!! ?????????????## !] ##??? | | ??????????????? #"" g??????????????## [##??? | | ??????????????? #" ??????????????##########??? | | ??????????????? #### ??????????????##########??? | | ???????????????##### ???????????????????????????? | | ?????????????????? ???????????????????????????? | | ??????????????????? ????????????????????????????? | | ?????????????????? ????????????????????????????? | | ?????????????????????????????????????????????????? | | ?????????????????????????????????????????????????? | | ?????????????????????????????????????????????????? | | ?????????????????????????????????????????????????? | | ?????????????????????????????????????????????????? | | ?????????????????????????????????????????????????? | | ?????????????????????????????????????????????????? | | ?????????????????????????????????????????????????? | | ?????????????????????????????????????????????????? | | ?????????????????????????????????????????????????? | | ?????????????????????????????????????????????????? | +----------------------------------------------------+ Best States ------------- Heat Dissipation 28 Energy Generation 10 Energy Capacity 250 Matter Stores 300 Matter Capacity 300 Sight Range 16 Robot Scan Range 14 Terrain Scan Density 10 Resistance: KI 35 Resistance: TH 35 Resistance: EX 35 Resistance: EM 35 Resistance: I 35 Resistance: S 35 Resistance: P 35 Evasion (%) 40 Recoil Reduction 2 Offensive Hacking 20 Item Schematics ----------------- None Robot Schematics ------------------ None Fabricated ------------ Nothing Alien Tech Used ----------------- None Achievements -------------- None Challenges ------------ None Game ------ Seed RiotGravityBarrier Manual? 0 Play Time 00:07:21 Cumulative 1.7 hours Start 2024.08.08 @ 11:17:16 End 2024.09.05 @ 09:47:58 Sessions 2 Manual Loads 0 Difficulty Explorer Special Mode None Game No. 14 Rogue 0 Adventurer 0 Explorer 14 Win Type - Total 0 Types 0/0/0/0/0/0/0/0/0 Lore% 1 Gallery% 7 Achievement% 6 Wizard Run 0 Options --------- Layout 1 ASCII 0 Keyboard 0 Movement Mouse Keybinds 0 Fullscreen 0 Font 36/Smallcaps Map View 50x35 Zoom Use 0% Tactical HUD 1 Map Filters NONE Filters NONE Steam 1 RUN: fc129cf6-c96c-42ce-8b22-566430b8de95